Cogmind - Beta 11 X6 @@@ ROGUE MODE // 2021.07.16 @ 17:04:32 Player: Luigi Panache Result: Destroyed by S-10 Pest with Light Assault Rifle Performance ------------- Evolutions (0) 0 Regions Visited (2) 400 Robots Destroyed (16) 80 Value Destroyed (415) 415 Prototype IDs (1) 20 Alien Tech Used (0) 0 Bonus (0) 0 TOTAL SCORE: 915 Bonus ------- None Cogmind --------- Core Integrity 0/250 Matter 300/300 Energy 280/280 System Corruption 1% Temperature Cool (0) Movement Rolling (130) Ox2 Location -10/Mines Parts ------- > --- POWER (1) -------- Cooled Ion Engine > --- PROPULSION (2) --- Light Treads Compact Wheel > --- UTILITY (2) ------ High-capacity Storage Unit Salvage Targeting Computer > --- WEAPON (2) ------- (None) > --- INVENTORY (20) --- Light Ion Engine Armored Treads Aluminum Leg Aluminum Leg Wheel Wheel Wheel Small Storage Unit Machine Analyzer Machine Analyzer Salvage Targeting Computer Improved Utility Shielding Improved Light Armor Plating Thief Drone Bay EM Pulse Gun Welding Torch Hammer Peak State ------------ > --- POWER ------------ Cooled Ion Engine > --- PROPULSION ------- Light Treads Compact Wheel > --- UTILITY ---------- High-capacity Storage Unit Salvage Targeting Computer > --- WEAPON ----------- Light Assault Rifle > --- INVENTORY -------- Light Ion Engine Armored Treads Aluminum Leg Aluminum Leg Wheel Wheel Wheel Small Storage Unit Machine Analyzer Salvage Targeting Computer Improved Utility Shielding Improved Light Armor Plating Thief Drone Bay EM Pulse Gun Welding Torch Hammer [Rating: 12] Favorites ----------- Power Ion Engine Engine Ion Engine Propulsion Light Treads Treads Light Treads Leg Aluminum Leg Wheel Compact Wheel Utility High-capacity Storage Unit Device Heat Sink Storage High-capacity Storage Unit Processor Salvage Targeting Computer Weapon Light Assault Rifle Energy Gun Small Laser Ballistic Gun Light Assault Rifle Build | -11 -10 -10 ------- Run | Scr Mat Min Slots Evolved . | . . . Power . | . . . Propulsion . | . . . Utility . | . . . Weapon . | . . . Parts Attached 9 | . 9 . Power 2 | . 2 . Engine 2 | . 2 . Core . | . . . Reactor . | . . . Propulsion 3 | . 3 . Treads 2 | . 2 . Leg . | . . . Wheel 1 | . 1 . Hover . | . . . Flight . | . . . Utility 3 | . 3 . Device 1 | . 1 . Storage 1 | . 1 . Processor 1 | . 1 . Hackware . | . . . Protection . | . . . Artifact . | . . . Weapon 1 | . 1 . Energy Gun . | . . . Energy Cannon . | . . . Ballistic Gun 1 | . 1 . Ballistic Cannon . | . . . Launcher . | . . . Special Weapon . | . . . Impact Weapon . | . . . Slashing Weapon . | . . . Piercing Weapon . | . . . Special Melee Weapon . | . . . Unidentified Prototypes 1 | . 1 . Parts Lost 4 | . 3 1 Power . | . . . Propulsion 1 | . 1 . Utility . | . . . Weapon 3 | . 2 1 Highest Loss Streak 2 | . 2 1 Average Slot Usage (%) 85 | . 86 85 Engine 14 | . 14 14 Treads 14 | . 14 14 Leg 3 | . 5 . Wheel 8 | . 6 14 Device 4 | . 6 . Storage 15 | . 16 14 Processor 5 | . 2 14 Energy Gun 3 | . 4 . Ballistic Gun 14 | . 14 14 Naked Turns . | . . . Heaviest Build 52 | 12 52 49 Greatest Support 40 | 20 40 16 Greatest Overweight (x) 3 | . 3 3 Average Overweight (x) 2 | . 1 2 Largest Inventory Capacity 20 | 8 20 20 Average Capacity 18 | 8 17 20 Most Carried 17 | 6 8 17 Average Carried 7 | 6 6 10 Final Capacity 20 | 8 20 20 Final Carried 17 | 6 8 17 Class Distribution -------------------- 100% | Mutant Dominant Class ---------------- Mutant | -10/Materials Mutant | -10/Mines Resources | -11 -10 -10 ----------- Run | Scr Mat Min Matter Collected 360 | 200 160 . Remotely . | . . . Salvage Created 685 | . 685 . Parts 40 | . 40 . Haulers Intercepted 1 | . 1 . Recyclers Shooed 2 | . 2 . Parts Field Recycled . | . . . Retrieved Matter . | . . . Parts Self-Destructed . | . . . Prevented . | . . . Kills | -11 -10 -10 ------- Run | Scr Mat Min Combat Hostiles Destroyed 9 | . 9 . Guns 9 | . 9 . Classes Destroyed 6 | . 6 . Worker 1 | . 1 . Builder 3 | . 3 . Hauler 1 | . 1 . Recycler 1 | . 1 . Watcher 1 | . 1 . Grunt 9 | . 9 . Best Kill Streak 3 | . 3 . Combat Bots Only 3 | . 3 . Max Kills in Single Turn 1 | . 1 . Gunslinging . | . . . Exploded . | . . . Melee . | . . . Uniques/NPCs Destroyed . | . . . Combat | -11 -10 -10 -------- Run | Scr Mat Min Damage Taken 915 | . 703 212 Core 253 | . 179 74 Absorbed by Shields . | . . . Core Remaining (%) 100 | 100 . . Volleys Fired 82 | . 78 4 Largest 2 | . 2 1 Hottest 60 | . 60 20 Shots Fired 128 | . 124 4 Gun 128 | . 124 4 Cannon . | . . . Launcher . | . . . Special . | . . . Kinetic 94 | . 90 4 Thermal 34 | . 34 . Explosive . | . . . Electromagnetic . | . . . Robot Hit Streak 10 | . 10 1 Robot Miss Streak 3 | . 3 2 Penetration Max . | . . . Secondary Targets 2 | . 2 . Max Gunslinging Chain 1 | . 1 . Shots Hit Robots 86 | . 85 1 Core Hits 41 | . 41 . Critical Kills . | . . . Critical Parts Destroyed . | . . . Critical Strikes . | . . . Melee Attacks . | . . . Impact . | . . . Slashing . | . . . Piercing . | . . . Sneak Attacks . | . . . Combat Hostiles . | . . . Follow-up Attacks . | . . . Damage Inflicted 877 | . 860 17 Guns 777 | . 771 6 Cannons . | . . . Explosions 71 | . 71 . Melee . | . . . Ramming 29 | . 18 11 Kinetic 504 | . 498 6 Thermal 273 | . 273 . Explosive . | . . . Electromagnetic 71 | . 71 . Impact . | . . . Slashing . | . . . Piercing . | . . . Highest Corruption 1 | . . 1 Average Corruption 1 | . . 1 Corruption Purged . | . . . Overload Shots . | . . . Overflow Damage . | . . . Projectiles . | . . . Explosions . | . . . Melee . | . . . Knockbacks . | . . . Impact . | . . . Kinetic . | . . . Secondary . | . . . Self-Inflicted Damage 13 | . 8 5 Shots . | . . . Rammed 4 | . 3 1 Targets Rammed 4 | . 3 1 Kicked . | . . . Crushed . | . . . Highest Temperature 296 | . 296 . Average Temperature 125 | . 125 . Received Heat Transfer 438 | . 438 . Effects 1 | . 1 . Energy Bleed 1 | . 1 . Siege Activations . | . . . Robots Corrupted . | . . . Combat Hostiles . | . . . Parts Fried . | . . . Impact Corruptions . | . . . Robots Melted . | . . . Combat Hostiles . | . . . Parts Melted 2 | . 2 . Heat Transferred 650 | . 650 . Parts Sabotaged . | . . . Parts Stolen . | . . . Parts Stripped . | . . . Power Chain Reactions . | . . . Missiles Intercepted . | . . . Alert | -11 -10 -10 ------- Run | Scr Mat Min Peak Influence 279 | . 279 36 Initial 36 | . . 36 Average 102 | . 134 35 Maximum Alert Level 1 | . 1 . Low Security (%) 79 | 100 70 100 Level 1 20 | . 29 . Level 2 . | . . . Level 3 . | . . . Level 4 . | . . . Level 5 . | . . . High Security . | . . . Max Security . | . . . Squads Dispatched . | . . . Investigation . | . . . Extermination . | . . . Reinforcement . | . . . Assault . | . . . Garrison . | . . . Intercept . | . . . Construction Impeded . | . . . Haulers Reinforced . | . . . Active Scanning Responses . | . . . Cargo Convoy Interrupts . | . . . Stealth | -11 -10 -10 --------- Run | Scr Mat Min Distress Signals 1 | . 1 . Communications Jammed . | . . . Distress Signals . | . . . Times Spotted 18 | . 15 3 Peak Tracking Total 3 | . 3 3 Tactical Retreats . | . . . Traps | -11 -10 -10 ------- Run | Scr Mat Min Traps Triggered 4 | . 1 3 Indirectly 1 | . 1 . Trap Hack Attempts . | . . . Triggered . | . . . Disarmed . | . . . Reprogrammed . | . . . Reused . | . . . Traps Extracted . | . . . Installed . | . . . Triggered . | . . . Machines | -11 -10 -10 ---------- Run | Scr Mat Min Machines Disabled 3 | . 3 . Max in Single Turn 2 | . 2 . Machines Sabotaged . | . . . Garrisons Compromised . | . . . Overloaded Fab Kills . | . . . Fab Network Shutdowns . | . . . Hacking | -11 -10 -10 --------- Run | Scr Mat Min Machines Accessed 5 | . 3 2 Terminals 2 | . 2 . Fabricators . | . . . Repair Stations . | . . . Recycling Units 1 | . 1 . Scanalyzers . | . . . Garrison Access . | . . . Total Hacks 8 | . 6 2 Successful 4 | . 2 2 Failed 4 | . 4 . Catastrophic 1 | . 1 . Database Lockouts . | . . . Manual . | . . . Terminals 4 | . 4 . Fabricators . | . . . Repair Stations . | . . . Recycling Units 2 | . 2 . Scanalyzers . | . . . Garrison Access . | . . . Terminal Hacks 3 | . 1 2 Open Door 2 | . . 2 Branch Access Points 1 | . 1 . Fabricator Hacks . | . . . Repair Station Hacks . | . . . Recycling Unit Hacks 1 | . 1 . Retrieve Components 1 | . 1 . Scanalyzer . | . . . Garrison Access Hacks . | . . . Unauthorized Hacks . | . . . Terminals . | . . . Fabricators . | . . . Repair Stations . | . . . Recycling Units . | . . . Scanalyzers . | . . . Garrison Access . | . . . Data Cores Recovered . | . . . Used . | . . . Hacking Detections 3 | . 3 . Full Trace Events . | . . . Feedback Events . | . . . Feedback Blocked . | . . . Robot Schematics Acquired . | . . . Robots Built . | . . . Matter . | . . . Time . | . . . Total Robot Build Rating . | . . . Part Schematics Acquired . | . . . Parts Built . | . . . Matter . | . . . Time . | . . . Total Part Build Rating . | . . . Parts Repaired . | . . . Time . | . . . Parts Recycled . | . . . Recycled Matter . | . . . Retrieved Matter . | . . . Retrieved Components 9 | . 9 . Parts Scanalyzed . | . . . Part Schematics Acquired . | . . . Parts Damaged . | . . . Bothacking | -11 -10 -10 ------------ Run | Scr Mat Min Used RIF Installer . | . . . Robots Hacked . | . . . Non-combat . | . . . Combat . | . . . Robot Hacks Applied . | . . . Relay Couplers Released . | . . . Robots Rewired . | . . . Allies Hacked . | . . . Hacks Repelled . | . . . Allies | -11 -10 -10 -------- Run | Scr Mat Min Total Allies . | . . . Largest Group . | . . . Highest-Rated Group . | . . . Highest-Rated Ally . | . . . Total Orders . | . . . Ally Attacks . | . . . Total Damage . | . . . Kills . | . . . Allies Corrupted . | . . . Allies Melted . | . . . Intel | -11 -10 -10 ------- Run | Scr Mat Min Robot Analysis Total . | . . . Derelict Logs Recovered . | . . . Drone Launches . | . . . Drone Recoveries . | . . . Exploration | -11 -10 -10 ------------- Run | Scr Mat Min Turns Passed 908 | 2 619 287 Spaces Moved 452 | 2 264 186 Core . | . . . Treads 31 | . 31 . Legs 59 | 2 57 . Wheels 362 | . 176 186 Hover . | . . . Flight . | . . . Fastest Speed 120 | 120 120 130 Average Speed 149 | 120 153 144 Slowest Speed 360 | 120 360 145 Overloaded Moves . | . . . Propulsion Burnouts . | . . . Robots Hopped . | . . . Cave-ins Triggered . | . . . Exploration Rate (%) 30 | 2 51 39 Regions Visited 2 Branch Regions 1 Pre-discovered Areas . | . . . Known Exits Taken 1 | . 1 . Unknown Exits Taken 1 | 1 . . Scrap Searched 1 | . . 1 Spaces Dug . | . . . Terrain Destroyed . | . . . Melee . | . . . Projectile . | . . . AOE . | . . . Terrain Rammed . | . . . Walls Destroyed . | . . . Machines Disabled . | . . . Actions | -11 -10 -10 --------- Run | Scr Mat Min Total 572 | 1 371 200 Wait 6 | . 6 . Move 450 | 1 263 186 Hop . | . . . Pick Up 15 | . 6 9 Fast Attach 4 | . 4 . Attach 5 | . 5 . Detach 1 | . 1 . Swap . | . . . Drop 5 | . 5 . Fire 82 | . 78 4 Melee . | . . . Ram 3 | . 2 1 Kick . | . . . Crush 1 | . 1 . Escape Stasis . | . . . Rewire . | . . . Trap . | . . . Miscellaneous . | . . . Route ------- -11/Scrapyard -10/Materials (discovered 3 exits: [*Mat] / *Min x2) -10/Mines History --------- Turn | Location | Event 1 | -11/Scrapyard | Discovered new exit (range 1) 3 | -11/Scrapyard | Entered Materials 27 | -10/Materials | Identified exit to Mines 173 | -10/Materials | Core integrity fell below 50% 310 | -10/Materials | Build established: Mutant 395 | -10/Materials | Discovered new exit (range 4) 622 | -10/Materials | Entered Mines 671 | -10/Mines | Found the Drone Emporium 676 | -10/Mines | Found Prototype Device 832 | -10/Mines | Met a Derelict who couldn't figure out how to use a Trap Extractor 839 | -10/Mines | Core integrity fell below 20% 909 | -10/Mines | Destroyed by S-10 Pest with Light Assault Rifle Last Messages --------------- 00832_ SHOP.Sys disabled. 00835_ Acquired Corrupted Machine Analyzer. 00836_ Triggered EMP Trap. 00836_ A bubble of electromagnetic force engulfs the area. 00837_ K-01 Serf collects debris. 00838_ Triggered Explosive Trap. 00838_ An explosion rips through the floor. 00840_ K-01 Serf collects debris. 00841_ Acquired Imp. Light Armor Plating. 00843_ Acquired Imp. Utility Shielding. 00844_ K-01 Serf collects debris. 00847_ Acquired Corrupted Arm. Treads. 00849_ Acquired Corrupted Machine Analyzer. 00850_ Triggered Explosive Trap. 00850_ An explosion rips through the floor. 00852_ K-01 Serf collects debris. 00864_ U-05 Engineer lays Concrete. 00865_ U-05 Engineer builds a Wall. 00866_ K-01 Serf collects debris. 00905_ Lgt. Assault Rifle destroyed. Map ----- +----------------------------------------------------+ | ## ##?# #?????????? ?????????????????????? | | ##### #??# """ #????????? #?????????????????????? | | ????# #### """ #????????? #?????????????????????? | | ##### """ #????????# #?????????????????????? | | ###### #???????# #?????????????????????? | | #???# ######?# #######???????????????? | | ] #???# ## ??????????????? | | ! #????# ???????????????? | | / #????# ### #????????????????????? | | #????#######?# #????????????????????? | | #????????????## #???????????????????? | | ##???####?????### ## #???????????????????? | | #??## ##??????# #??? #???????????????????? | | #??# ##????## #?????#???????????????????? | | #??# ###### #?????????????????????????? | | #### ## #?????????????????????????? | | %! ##????????????????????????? | | # ###??????????????????????? | | ## #### ##?????????????????????? | | ## #### #?????????????????????? | | ## #?????????????????????? | | ######## ######## #?????????????????????? | | #??????#####??????## ###########???????????? | | ######??????????????????# s ????????? | | ????????????????????????# s ????????? | | ????????????????????????#@ ###########???????????? | | ???????????????????????# #?????????????????????? | | ?????????????????????? ????????????????????? | | ????????????????????? ???????????????????? | | ???????????????????? ####??????????????????? | | ?????????????????? ##?????????????????????? | | ?????????????????# ####??????????????????????? | | ?????????????????# #??????????????????????????? | | ?????????????????# ???????????????????????????? | | ?????????????????## ???????????????????????????? | | ??????????????????## ????????????????????????????? | | ???????????????????##????????????????????????????? | | ?????????????????????????????????????????????????? | | ?????????????????????????????????????????????????? | | ?????????????????????????????????????????????????? | | ?????????????????????????????????????????????????? | | | | | | | | | | | | | | | | | | | +----------------------------------------------------+ Best States ------------- Heat Dissipation 35 Energy Generation 14 Energy Capacity 280 Matter Stores 300 Matter Capacity 300 Sight Range 16 Terrain Scan Density 10 Evasion (%) 55 Recoil Reduction 2 Salvage Targeting 1 Item Schematics ----------------- None Robot Schematics ------------------ None Fabricated ------------ Nothing Alien Tech Used ----------------- None Achievements -------------- None Challenges ------------ None Game ------ Seed TransportTrapThrusters Manual? 0 Play Time 00:09:32 Cumulative 391.9 hours Start 2021.07.16 @ 16:54:36 End 2021.07.16 @ 17:04:32 Sessions 1 Manual Loads 0 Difficulty Rogue Special Mode None Game No. 374 Rogue 159 Adventurer 112 Explorer 103 Win Type - Total 27 Types 19/0/5/2/0/0/0/1/0 Lore% 84 Gallery% 90 Achievement% 76 Wizard Run 0 Options --------- ASCII 0 Keyboard 0 Movement Vi Keybinds 0 Fullscreen 2 Font 14/Terminus Map View 72x54 Tactical HUD 1 Map Filters NONE Filters NONE Steam 1 RUN: 95947193-3c3c-45f2-9d8b-35535cfe1470